Cogmind - Beta 13 @@@ ROGUE MODE // 2024.04.11 @ 21:01:35 Player: OldWhovian Result: Self-destructed Performance ------------- Evolutions (3) 1500 Regions Visited (5) 1000 Robots Destroyed (56) 280 Value Destroyed (1670) 1670 Prototype IDs (6) 120 Alien Tech Used (0) 0 Bonus (0) 0 TOTAL SCORE: 4570 Bonus ------- None Cogmind --------- Core Integrity 620/700 Matter 300/300 Energy 155/160 System Corruption 0% Temperature Cool (12) Movement Treading (240) Ox1 Location -7/Lower Caves Parts ------- > --- POWER (1) -------- Light Nuclear Core > --- PROPULSION (3) --- Improved Treads > --- UTILITY (5) ------ Advanced Heat Sink Large Storage Unit Weight Redist. System Improved Sensor Array > --- WEAPON (4) ------- Lightning Gun Heavy Particle Cannon Heavy Battle Rifle > --- INVENTORY (15) --- Light Nuclear Core Improved Deuterium Engine Improved Heat Sink Advanced Weight Redist. System Advanced Visual Processing Unit Transmission Jammer Shield Generator Arc Projector Medium Laser Gatling Laser Peak State ------------ > --- POWER ------------ Light Nuclear Core > --- PROPULSION ------- Improved Treads Medium Treads > --- UTILITY ---------- Advanced Heat Sink Large Storage Unit Weight Redist. System Improved Sensor Array Hardened Light Armor Plating > --- WEAPON ----------- Lightning Gun Particle Cannon Heavy Particle Cannon Heavy Battle Rifle > --- INVENTORY -------- Light Nuclear Core Improved Deuterium Engine Improved Heat Sink Advanced Weight Redist. System Advanced Visual Processing Unit Transmission Jammer Shield Generator Arc Projector Medium Laser Gatling Laser [Rating: 38] Favorites ----------- Power Ion Engine Engine Ion Engine Power Core Light Nuclear Core Propulsion Improved Treads Treads Improved Treads Utility Large Storage Unit Device Improved Sensor Array Storage Large Storage Unit Processor Visual Processing Unit Protection Hardened Light Armor Plating Weapon Autogun Energy Gun EM Pulse Gun Energy Cannon Particle Cannon Ballistic Gun Autogun Build | -11 -10 -9 -8 -7 -7 ------- Run | Yrd Mat Mat Mat Fac Low Slots Evolved 6 | . . 2 2 2 . Power . | . . . . . . Propulsion 1 | . . . 1 . . Utility 3 | . . 1 1 1 . Weapon 2 | . . 1 . 1 . Parts Attached 43 | 6 1 13 9 8 6 Power 7 | 1 . 2 2 1 1 Engine 4 | 1 . 1 2 . . Core 3 | . . 1 . 1 1 Reactor . | . . . . . . Propulsion 10 | 2 . 2 2 1 3 Treads 10 | 2 . 2 2 1 3 Leg . | . . . . . . Wheel . | . . . . . . Hover . | . . . . . . Flight . | . . . . . . Utility 12 | 1 1 4 4 2 . Device 6 | . . 2 3 1 . Storage 3 | 1 . 2 . . . Processor 1 | . 1 . . . . Hackware . | . . . . . . Protection 2 | . . . 1 1 . Artifact . | . . . . . . Weapon 14 | 2 . 5 1 4 2 Energy Gun 5 | 1 . 2 1 . 1 Energy Cannon 2 | . . . . 2 . Ballistic Gun 7 | 1 . 3 . 2 1 Ballistic Cannon . | . . . . . . Launcher . | . . . . . . Special Weapon . | . . . . . . Impact Weapon . | . . . . . . Slashing Weapon . | . . . . . . Piercing Weapon . | . . . . . . Special Melee Weapon . | . . . . . . Unidentified Prototypes . | . . . . . . Parts Lost 16 | . . 2 1 4 9 Power . | . . . . . . Propulsion 5 | . . . . . 5 Utility 2 | . . . . 1 1 Weapon 9 | . . 2 1 3 3 Highest Loss Streak 4 | . . 1 1 4 3 To Critical Strikes 1 | . . . . . 1 Average Slot Usage (%) 95 | . 87 98 99 99 86 Engine 6 | . 14 7 9 6 . Core 2 | . . 3 . . 7 Treads 22 | . 28 22 27 23 15 Device 14 | . . 9 12 23 23 Storage 9 | . 14 11 9 7 7 Processor 5 | . 2 11 5 . . Protection 4 | . . . 8 6 6 Energy Gun 5 | . 14 8 3 3 . Energy Cannon 4 | . . . . 10 15 Ballistic Gun 19 | . 14 24 23 15 9 Naked Turns . | . . . . . . Heaviest Build 50 | 13 13 35 43 50 50 Greatest Support 80 | 40 40 46 69 75 80 Greatest Overweight (x) 3 | 3 . . . . 1 Average Overweight (x) . | . . . . . . Largest Inventory Capacity 15 | 8 8 15 15 15 15 Average Capacity 14 | 7 8 14 15 15 15 Most Carried 15 | 6 8 15 15 14 12 Average Carried 12 | 3 5 13 14 12 9 Final Capacity 15 | 8 8 15 15 15 15 Final Carried 15 | 4 8 15 15 12 10 Class Distribution -------------------- 50% | Tank 32% | Skirmisher 10% | Mutant 6% | Scavenger-Tank Dominant Class ---------------- Mutant | -10/Materials Skirmisher | -9/Materials Tank | -8/Materials Scavenger-Tank | -7/Factory Tank | -7/Lower Caves Resources | -11 -10 -9 -8 -7 -7 ----------- Run | Yrd Mat Mat Mat Fac Low Matter Collected 1535 | 193 44 561 517 39 181 Remotely . | . . . . . . Salvage Created 2433 | . 44 1404 820 39 126 Parts 107 | . 3 64 35 . 5 Haulers Intercepted 5 | . 1 2 2 . . Recyclers Shooed 5 | . . 3 2 . . Parts Field Recycled . | . . . . . . Retrieved Matter . | . . . . . . Parts Self-Destructed 8 | . . . . . 8 Prevented . | . . . . . . Kills | -11 -10 -9 -8 -7 -7 ------- Run | Yrd Mat Mat Mat Fac Low Combat Hostiles Destroyed 39 | . . 22 12 1 4 Guns 36 | . . 22 11 . 3 Cannons 2 | . . . . 1 1 AOE 1 | . . . 1 . . Classes Destroyed 11 | . 1 8 1 . 1 Worker 3 | . . 1 2 . . Builder 1 | . . . 1 . . Hauler 5 | . 1 2 2 . . Recycler 5 | . . 3 2 . . Operator 1 | . . 1 . . . Watcher 2 | . . 2 . . . Swarmer 6 | . . 3 . . 3 Grunt 24 | . . 14 10 . . Brawler 1 | . . 1 . . . Sentry 7 | . . 4 2 1 . Hunter 1 | . . . . . 1 Best Kill Streak 5 | . 1 5 5 1 2 Combat Bots Only 4 | . . 4 3 1 2 Max Kills in Single Turn 4 | . 1 1 4 1 1 Gunslinging . | . . . . . . Exploded 1 | . . . 1 . . Melee . | . . . . . . Uniques/NPCs Destroyed . | . . . . . . Combat | -11 -10 -9 -8 -7 -7 -------- Run | Yrd Mat Mat Mat Fac Low Hostile Shots Fired 283 | . . 74 51 9 149 Missed 79 | . . 21 9 5 44 Damage Taken 3111 | . . 704 682 305 1420 Core 214 | . . 93 41 16 64 Absorbed by Shields . | . . . . . . Core Remaining (%) 92 | 100 100 76 92 . . Volleys Fired 133 | . 5 63 42 2 21 Largest 4 | . 2 3 3 4 4 Hottest 231 | . 70 86 111 179 231 Shots Fired 396 | . 10 189 126 5 66 Gun 360 | . 10 189 126 3 32 Cannon 36 | . . . . 2 34 Launcher . | . . . . . . Special . | . . . . . . Kinetic 297 | . 5 139 121 2 30 Thermal 47 | . 5 . 5 3 34 Explosive . | . . . . . . Electromagnetic 52 | . . 50 . . 2 Robot Hit Streak 17 | . 8 17 12 5 9 Robot Miss Streak 5 | . 1 3 4 3 5 Penetration Max . | . . . . . . Secondary Targets 2 | . . 1 1 . . Max Gunslinging Chain 1 | . . 1 1 . . Shots Hit Robots 259 | . 9 125 82 5 38 Core Hits 112 | . 2 53 43 5 9 Critical Kills 1 | . . . 1 . . Critical Parts Destroyed 2 | . . . 2 . . Critical Strikes 3 | . . . 3 . . Destroy 3 | . . . 3 . . Melee Attacks . | . . . . . . Impact . | . . . . . . Slashing . | . . . . . . Piercing . | . . . . . . Sneak Attacks . | . . . . . . Combat Hostiles . | . . . . . . Follow-up Attacks . | . . . . . . Damage Inflicted 4245 | . 90 1791 1503 142 719 Guns 3306 | . 90 1643 1231 40 302 Cannons 459 | . . . . 42 417 Explosions 480 | . . 148 272 60 . Melee . | . . . . . . Ramming . | . . . . . . Kinetic 2641 | . 41 1105 1178 27 290 Thermal 958 | . 49 148 289 55 417 Explosive 60 | . . . . 60 . Electromagnetic 586 | . . 538 36 . 12 Impact . | . . . . . . Slashing . | . . . . . . Piercing . | . . . . . . Highest Corruption 2 | . 2 . . . . Average Corruption 2 | . 2 . . . . Corruption Purged . | . . . . . . Corruption Blocked . | . . . . . . Effects 1 | . 1 . . . . Message Errors 1 | . 1 . . . . Overload Shots . | . . . . . . Overflow Damage 90 | . . . 48 22 20 Projectiles 20 | . . . . . 20 Explosions 70 | . . . 48 22 . Melee . | . . . . . . Knockbacks . | . . . . . . Impact . | . . . . . . Kinetic . | . . . . . . Secondary . | . . . . . . Self-Inflicted Damage 366 | . . 66 17 283 . Shots 7 | . . 2 1 4 . Rammed . | . . . . . . Targets Rammed . | . . . . . . Kicked . | . . . . . . Crushed . | . . . . . . Highest Temperature 393 | . 80 52 41 52 393 Average Temperature 50 | . 40 15 12 36 128 Received Heat Transfer 1049 | . . 282 369 6 392 Effects 1 | . . . . . 1 Shutdowns 1 | . . . . . 1 Siege Activations . | . . . . . . Robots Corrupted . | . . . . . . Combat Hostiles . | . . . . . . Parts Fried 1 | . . 1 . . . Impact Corruptions . | . . . . . . Robots Melted . | . . . . . . Combat Hostiles . | . . . . . . Parts Melted 3 | . . . . 1 2 Heat Transferred 1418 | . 148 300 215 89 666 Parts Sabotaged . | . . . . . . Parts Stolen . | . . . . . . Parts Stripped . | . . . . . . Power Chain Reactions 3 | . . 3 . . . Alert | -11 -10 -9 -8 -7 -7 ------- Run | Yrd Mat Mat Mat Fac Low Peak Influence 322 | . 55 320 322 183 . Initial 87 | . . 22 87 47 . Average 128 | . 32 152 170 64 . Maximum Alert Level 1 | . . 1 1 . . Low Security (%) 77 | 100 100 69 68 100 . Level 1 22 | . . 30 31 . . Level 2 . | . . . . . . Level 3 . | . . . . . . Level 4 . | . . . . . . Level 5 . | . . . . . . High Security . | . . . . . . Max Security . | . . . . . . Squads Dispatched 8 | . . 4 3 1 . Investigation 1 | . . 1 . . . Extermination . | . . . . . . Reinforcement 7 | . . 3 3 1 . Assault . | . . . . . . Garrison . | . . . . . . Intercept . | . . . . . . Searches Triggered . | . . . . . . Construction Impeded . | . . . . . . Haulers Reinforced . | . . . . . . Active Scanning Responses . | . . . . . . Cargo Convoy Interrupts . | . . . . . . Stealth | -11 -10 -9 -8 -7 -7 --------- Run | Yrd Mat Mat Mat Fac Low Distress Signals 5 | . . 5 . . . Communications Jammed . | . . . . . . Distress Signals . | . . . . . . Times Spotted 68 | . 2 39 18 3 6 Peak Tracking Total 5 | . 2 5 3 2 5 Tactical Retreats 5 | . . 4 1 . . Traps | -11 -10 -9 -8 -7 -7 ------- Run | Yrd Mat Mat Mat Fac Low Traps Triggered 2 | . 1 1 . . . Indirectly . | . . . . . . Trap Hack Attempts . | . . . . . . Triggered . | . . . . . . Disarmed 6 | . . 6 . . . Reprogrammed 1 | . . 1 . . . Reused . | . . . . . . Traps Extracted . | . . . . . . Installed . | . . . . . . Triggered . | . . . . . . Machines | -11 -10 -9 -8 -7 -7 ---------- Run | Yrd Mat Mat Mat Fac Low Machines Disabled 7 | . . . 2 5 . Max in Single Turn 5 | . . . 2 5 . Machines Repaired . | . . . . . . Machines Dismantled . | . . . . . . Machines Sabotaged . | . . . . . . Overloaded Fab Kills . | . . . . . . Hacking | -11 -10 -9 -8 -7 -7 --------- Run | Yrd Mat Mat Mat Fac Low Machines Accessed 12 | . 2 4 4 2 . Terminals 10 | . 2 4 3 1 . Fabricators . | . . . . . . Repair Stations 1 | . . . 1 . . Recycling Units 1 | . . . . 1 . Scanalyzers . | . . . . . . Garrison Access . | . . . . . . Total Hacks 36 | . 4 17 10 5 . Successful 19 | . 3 9 5 2 . Failed 17 | . 1 8 5 3 . Catastrophic 1 | . . 1 . . . Database Lockouts . | . . . . . . Manual . | . . . . . . Terminals 32 | . 4 17 8 3 . Fabricators . | . . . . . . Repair Stations 2 | . . . 2 . . Recycling Units 2 | . . . . 2 . Scanalyzers . | . . . . . . Garrison Access . | . . . . . . Terminal Hacks 17 | . 3 9 5 . . Prototype ID Bank 3 | . . 1 2 . . Emergency Access Points 1 | . 1 . . . . Terminal Index 1 | . . . 1 . . Alert Level 1 | . . 1 . . . Unreport Threat 1 | . . 1 . . . Locate Traps 4 | . 1 2 1 . . Disarm Traps 1 | . . 1 . . . Reprogram Traps 1 | . . 1 . . . Hauler Manifests 1 | . . . 1 . . Zone Layout 3 | . 1 2 . . . Fabricator Hacks . | . . . . . . Repair Station Hacks . | . . . . . . Recycling Unit Hacks 2 | . . . . 2 . Process 1 | . . . . 1 . Report Inventory 1 | . . . . 1 . Scanalyzer . | . . . . . . Garrison Access Hacks . | . . . . . . Unauthorized Hacks . | . . . . . . Terminals . | . . . . . . Fabricators . | . . . . . . Repair Stations . | . . . . . . Recycling Units . | . . . . . . Scanalyzers . | . . . . . . Garrison Access . | . . . . . . Data Cores Recovered . | . . . . . . Used . | . . . . . . Hacking Detections 11 | . 2 4 3 2 . Full Trace Events . | . . . . . . Feedback Events . | . . . . . . Feedback Blocked . | . . . . . . Robot Schematics Acquired . | . . . . . . Robots Built . | . . . . . . Authchips . | . . . . . . Time . | . . . . . . Total Robot Build Rating . | . . . . . . Part Schematics Acquired . | . . . . . . Parts Built . | . . . . . . Authchips . | . . . . . . Time . | . . . . . . Total Part Build Rating . | . . . . . . Parts Repaired . | . . . . . . Time . | . . . . . . Parts Recycled . | . . . . . . Recycled Matter 13 | . . . . 13 . Retrieved Matter . | . . . . . . Retrieved Components . | . . . . . . Parts Scanalyzed . | . . . . . . Part Schematics Acquired . | . . . . . . Parts Damaged . | . . . . . . Bothacking | -11 -10 -9 -8 -7 -7 ------------ Run | Yrd Mat Mat Mat Fac Low Used RIF Installer . | . . . . . . Robots Hacked . | . . . . . . Non-combat . | . . . . . . Combat . | . . . . . . Robot Hacks Applied . | . . . . . . Relay Couplers Released . | . . . . . . Fabnet Peak Effective % . | . . . . . . Robots Rewired . | . . . . . . Allies Hacked . | . . . . . . Hacks Repelled . | . . . . . . Allies | -11 -10 -9 -8 -7 -7 -------- Run | Yrd Mat Mat Mat Fac Low Total Allies . | . . . . . . Largest Group . | . . . . . . Highest-Rated Group . | . . . . . . Highest-Rated Ally . | . . . . . . Total Orders . | . . . . . . Ally Attacks . | . . . . . . Total Damage . | . . . . . . Kills . | . . . . . . Allies Corrupted . | . . . . . . Allies Melted . | . . . . . . Intel | -11 -10 -9 -8 -7 -7 ------- Run | Yrd Mat Mat Mat Fac Low Robot Analysis Total . | . . . . . . Derelict Logs Recovered . | . . . . . . Drone Launches . | . . . . . . Drone Recoveries . | . . . . . . Exploration | -11 -10 -9 -8 -7 -7 ------------- Run | Yrd Mat Mat Mat Fac Low Turns Passed 4397 | 129 339 1372 1220 526 811 Spaces Moved 2238 | 73 200 651 570 290 454 Core 21 | 21 . . . . . Treads 2217 | 52 200 651 570 290 454 Legs . | . . . . . . Wheels . | . . . . . . Hover . | . . . . . . Flight . | . . . . . . Fastest Speed 50 | 50 160 160 160 160 160 Average Speed 160 | 156 160 160 160 160 161 Slowest Speed 240 | 200 160 160 160 160 240 Overloaded Moves . | . . . . . . Propulsion Burnouts . | . . . . . . Robots Hopped . | . . . . . . Cave-ins Triggered . | . . . . . . Exploration Rate (%) 28 | 5 27 46 32 6 52 Regions Visited 5 Branch Regions 1 Pre-discovered Areas . | . . . . . . Known Exits Taken . | . . . . . . Unknown Exits Taken 5 | 1 1 1 1 1 . Scrap Searched 1 | . . . . . 1 Spaces Dug . | . . . . . . Terrain Destroyed 46 | . . 4 17 25 . Melee . | . . . . . . Projectile . | . . . . . . AOE 46 | . . 4 17 25 . Terrain Rammed . | . . . . . . Walls Destroyed . | . . . . . . Machines Disabled . | . . . . . . Actions | -11 -10 -9 -8 -7 -7 --------- Run | Yrd Mat Mat Mat Fac Low Total 2808 | 88 210 868 801 349 492 Wait 307 | . . 97 161 41 8 Move 2233 | 72 199 650 569 289 454 Hop . | . . . . . . Pick Up 64 | 10 5 28 12 6 3 Fast Attach . | . . . . . . Attach 25 | 6 1 4 3 6 5 Detach . | . . . . . . Swap 18 | . . 9 6 2 1 Drop 28 | . . 17 8 3 . Fire 133 | . 5 63 42 2 21 Melee . | . . . . . . Ram . | . . . . . . Kick . | . . . . . . Crush . | . . . . . . Escape Stasis . | . . . . . . Rewire . | . . . . . . Trap . | . . . . . . Miscellaneous . | . . . . . . Route ------- -11/Scrapyard -10/Materials (discovered 2 exits: *Mat / [*Min]) -9/Materials (discovered 2 exits: *Mat / [*Sto]) -8/Materials -7/Factory -7/Lower Caves History --------- Turn | Location | Event 14 | -11/Scrapyard | Discovered new exit (range 16) 130 | -11/Scrapyard | Entered Materials 151 | -10/Materials | Discovered new exit (range 16) 302 | -10/Materials | Build established: Mutant 448 | -10/Materials | Discovered new exit (range 11) 469 | -10/Materials | Entered another Materials area 469 | -9/Materials | Evolved 2 slots: Utility x1, Weapon x1 469 | -9/Materials | Discovered new exit (range 7) 779 | -9/Materials | Build established: Skirmisher 1812 | -9/Materials | Discovered new exit (range 12) 1841 | -9/Materials | Entered another Materials area 1841 | -8/Materials | Evolved 2 slots: Propulsion x1, Utility x1 2151 | -8/Materials | Build established: Tank 2881 | -8/Materials | Discovered new exit (range 16) 3061 | -8/Materials | Entered Factory 3061 | -7/Factory | Evolved 2 slots: Utility x1, Weapon x1 3372 | -7/Factory | Lost 4 parts (1u3w) 3577 | -7/Factory | Discovered new exit (range 4) 3587 | -7/Factory | Entered Lower Caves 3638 | -7/Lower Caves | Lost 3 parts (3n) 3912 | -7/Lower Caves | Spotted B-75 Beast 4079 | -7/Lower Caves | Encountered a Warlord checkpoint 4398 | -7/Lower Caves | Self-destructed Last Messages --------------- know." M3-7UF(k) breaks down the debris. Searching scrap... Found Hvy. Battle Rifle. Found Adv. Weight Redist. System. Found Transmission Jammer. Found 35 Matter. Acquired Hvy. Battle Rifle. Acquired 10 matter. Acquired Adv. Weight Redist. System. M3-7UF(k) breaks down the debris. Acquired Transmission Jammer. M3-7UF(k) breaks down the debris. Critical hit (Meltdown: +320). Autogun destroyed. Acquired 4 matter. Acquired 2 matter. Hrd. Light Armor Plating destroyed. Particle Cannon destroyed. Med. Treads destroyed. Map ----- +----------------------------------------------------+ | ?????????????????????????????????????????????????? | | ?????????????????????????????????????????????????? | | ?????????????????????????????????????????????????? | | ?????????????????????????????????????????????????? | | ?????????????????????????????????????????????????? | | ?????????????????????????????????????????????????? | | ?????????????????????????????????????????????????? | | ?????????????????????????????????????????????????? | | ?????????????????????????????????????????????????? | | ??????###??????###????????##?????????????????????? | | ####### ##????## ##??##### ##?###????????????????? | | # ###### #??? ## ##???????????????? | | #??? ##??????????????? | | ##??#% % ### ??????????? | | ## ## ####% % ?????????? | | ?##### ### %% ?????????? | | ?????## ##### %% ?????????? | | ??#???####?## %% % % " ?????????? | | #????????# % % % " ????????? | | #????????## % % "#" #?? ??????? | | ????????### %% BB ##???? #?? ?????? | | ????????# % BB;;##????????#?? ?????? | | ????????# ## #;;;;##?????????# ?????? | | ??????? #?## % ###; ;##???????? ??????? | | ??? %%#???## ### % % ;####????# #??????? | | ?####%% ?????# ## @ % % #???? #??????? | | ????# %?????# #;;; #???? ##?????? | | ###?????# ??????#% ## ;; ##???? #?????? | | ####????# ???????## #### ##????# #?????? | | ##????????????# % #?# %#???## #?????? | | #???????????# ##?## ##???# ##????? | | #???????????# #???###;####?# ##???? | | #???????????# #?????#### ## ##?? | | #??????????###% #??????## ### | | #######???????? ##??????# ## | | #???????% #???????# ? ##### | | #??????### % #???????## #?????# | | #???????# % #????????## #???### ### | | ###????? % %#???????#?#### #??## #??? | | % ##???### ##???? ????# #### #??? | | % % ##????# ### % ????# ##### | | #???## % % %???????## #### # # | | #### ###### ??????????# #??# # | | #?# % ## # ???????????### #?## # # | | #?#% % % % #????????????# #?# | | ### ###### % ## #????????????# ###?# # | | #?## ##????## #### %#????????????# #??# | | ????##??????####??# #????????????# #?# ## | | ??????????????????# #??###???????# ## ##? | | ??????????????????# #?##%##??????# ## ####?? | +----------------------------------------------------+ Best States ------------- Heat Dissipation 53 Energy Generation 14 Energy Capacity 265 Matter Stores 300 Matter Capacity 300 Sight Range 18 Robot Scan Range 15 Terrain Scan Density 10 Additional Mass Support 6 Armor Coverage 150 Evasion (%) 40 Recoil Reduction 3 Item Schematics ----------------- None Robot Schematics ------------------ None Fabricated ------------ Nothing Alien Tech Used ----------------- None Achievements -------------- None Challenges ------------ None Game ------ Seed DeliveryCouplerMagmablaster Manual? 0 Play Time 00:51:50 Cumulative 14.0 hours Start 2024.04.11 @ 19:58:48 End 2024.04.11 @ 21:01:35 Sessions 1 Manual Loads 0 Difficulty Rogue Special Mode None Game No. 15 Rogue 15 Adventurer 0 Explorer 0 Win Type - Total 0 Types 0/0/0/0/0/0/0/0/0 Lore% 17 Gallery% 14 Achievement% 16 Wizard Run 0 Options --------- Layout 0 ASCII 0 Keyboard 0 Movement Arrows Keybinds 0 Fullscreen 2 Font 36/Smallcaps Map View 38x25 Zoom Use 100% Tactical HUD 0 Map Filters NONE Filters NONE Steam 1 RUN: d164cc9d-4b00-4bd2-b4d8-c13e7fde8bf3